Cogmind - Beta 13 *** ADVENTURER MODE // 2024.04.10 @ 18:34:33 Player: trisiak Result: Destroyed by G-67 Veteran with Field Laser Performance ------------- Evolutions (6) 3000 Regions Visited (15) 3000 Robots Destroyed (256) 1280 Value Destroyed (15097) 15097 Prototype IDs (27) 540 Alien Tech Used (0) 0 Bonus (8254) 8254 TOTAL SCORE: 31171 Bonus ------- High Alert Combat Kills 4728 Follower Combat Kills 1976 Entered Garrisons 1000 Used RIF Installer 3000 Aligned with FarCom 300 Friendly Fire -2750 Cogmind --------- Core Integrity 0/1150 Matter 42/300 Energy 100/100 System Corruption 0% Temperature Cool (26) Movement Core (350) Ox6 Location -4/Factory Parts ------- > --- POWER (2) -------- (None) > --- PROPULSION (4) --- (None) > --- UTILITY (9) ------ Large Storage Unit Enhanced Optical Array Relay Coupler [Demolisher] (1) > --- WEAPON (4) ------- (None) > --- INVENTORY (15) --- Matter Compressor (250) Advanced Phase Shifter Relay Coupler [Specialist] (29) Relay Coupler [Heavy] (19) Relay Coupler [Behemoth] (11) Recalibrator Autogun KE Penetrator Hypervelocity Railgun Hypervelocity Railgun Heavy Linear Accelerator Improved Remote Datajack Improved Remote Datajack Peak State ------------ > --- POWER ------------ Light Nuclear Core Reinforced Fission Core > --- PROPULSION ------- Compact Wheel Compact Wheel Armored Huge Wheel > --- UTILITY ---------- Advanced Heat Sink Large Storage Unit Enhanced Optical Array Advanced Signal Interpreter Advanced Targeting Computer Improved Transmission Jammer Hacking Suite Relay Coupler [NC] Relay Coupler [Duelist] > --- WEAPON ----------- Hypervelocity Railgun Helical Railgun Heavy Linear Accelerator > --- INVENTORY -------- Micro Fission Core Matter Compressor Advanced Phase Shifter Relay Coupler [Demolisher] Relay Coupler [Specialist] Relay Coupler [Heavy] Relay Coupler [Behemoth] Recalibrator Autogun KE Penetrator Hypervelocity Railgun Heavy Linear Accelerator Improved Remote Datajack Improved Remote Datajack [Rating: 93] Favorites ----------- Power Micro Fission Core Engine Light Ion Engine Power Core Micro Fission Core Reactor Light Antimatter Reactor Propulsion Light Treads Treads Light Treads Leg Flexi-carbon Leg Wheel Armored Huge Wheel Hover Unit Improved Gravmag System Utility Large Storage Unit Device Improved Transmission Jammer Storage Large Storage Unit Processor Advanced Targeting Computer Hackware Relay Coupler [NC] Protection Improved Light Armor Plating Weapon AWS/Thermal Energy Gun AWS/Thermal Energy Cannon Advanced Plasma Cannon Ballistic Gun KE Penetrator Ballistic Cannon Heavy Mass Driver Launcher Heavy Missile Launcher Special Weapon Improved Remote Datajack Impact Weapon Hammer Slashing Weapon Longsword +1 Build | -11 -10 -10 -10 -9 -8 -8 -8 -8 -7 -7 -6 -6 -5 -5 -4 ------- Run | Yrd Mat Min Exi Min Mat Gar Mat Gar Fac Gar Fac Gar Fac Gar Fac Slots Evolved 12 | . . . . . 4 . . . 2 . 2 . 2 . 2 Power 1 | . . . . . . . . . . . . . . . 1 Propulsion 2 | . . . . . 1 . . . 1 . . . . . . Utility 7 | . . . . . 1 . . . 1 . 2 . 2 . 1 Weapon 2 | . . . . . 2 . . . . . . . . . . Parts Attached 318 | 6 14 6 7 . 9 16 18 41 10 37 31 67 12 24 20 Power 36 | 1 2 2 . . 1 2 1 1 . 8 1 6 . 7 4 Engine 21 | 1 2 2 . . . 2 1 . . 7 1 2 . 2 1 Core 14 | . . . . . 1 . . 1 . 1 . 3 . 5 3 Reactor 1 | . . . . . . . . . . . . 1 . . . Propulsion 55 | 2 . 2 . . 1 3 6 1 1 4 6 18 6 3 2 Treads 18 | 2 . 2 . . 1 3 5 1 . 2 . 1 . 1 . Leg 15 | . . . . . . . . . . . 3 8 2 2 . Wheel 16 | . . . . . . . 1 . 1 2 . 6 4 . 2 Hover 6 | . . . . . . . . . . . 3 3 . . . Flight . | . . . . . . . . . . . . . . . . Utility 94 | 1 4 2 3 . 2 . 3 9 5 11 13 27 6 6 2 Device 59 | 1 1 2 2 . 1 . 2 3 5 9 8 17 4 3 1 Storage 4 | . 2 . . . . . 1 . . . 1 . . . . Processor 7 | . 1 . 1 . 1 . . . . 1 2 1 . . . Hackware 22 | . . . . . . . . 6 . 1 2 7 2 3 1 Protection 2 | . . . . . . . . . . . . 2 . . . Artifact . | . . . . . . . . . . . . . . . . Weapon 133 | 2 8 . 4 . 5 11 8 30 4 14 11 16 . 8 12 Energy Gun 9 | 1 . . 1 . 1 1 . . . . 3 . . 2 . Energy Cannon 17 | . 3 . 1 . 1 1 1 2 . 3 4 1 . . . Ballistic Gun 41 | 1 2 . . . . 2 2 8 2 5 1 7 . 3 8 Ballistic Cannon 20 | . 1 . 1 . 2 3 2 5 1 2 . 2 . 1 . Launcher 20 | . . . . . . 3 . 11 . 3 . 3 . . . Special Weapon 24 | . 2 . . . 1 . 3 4 1 1 3 3 . 2 4 Impact Weapon 1 | . . . . . . 1 . . . . . . . . . Slashing Weapon 1 | . . . 1 . . . . . . . . . . . . Piercing Weapon . | . . . . . . . . . . . . . . . . Special Melee Weapon . | . . . . . . . . . . . . . . . . Unidentified Prototypes 5 | . . . 3 . . . 1 . . . . . . . 1 Corrupted Parts 1 | . . . . . . . . . . . . 1 . . . System Corruption 1 | . . . . . . . . . . . . 1 . . . Parts Lost 51 | . 4 . . . . 2 1 1 1 4 4 15 3 4 12 Power 7 | . 2 . . . . 1 . . . . . 2 . 1 1 Propulsion 14 | . . . . . . . 1 . . 1 2 3 2 2 3 Utility 14 | . 1 . . . . . . . . 1 1 4 1 . 6 Weapon 16 | . 1 . . . . 1 . 1 1 2 1 6 . 1 2 Highest Loss Streak 12 | . 2 . . . . 1 1 1 1 2 2 3 3 2 12 To Critical Strikes . | . . . . . . . . . . . . . . . . Average Slot Usage (%) 88 | . 93 100 98 100 95 89 89 80 74 83 87 93 92 87 74 Engine 4 | . 8 14 14 14 6 2 9 . . 6 6 4 . 1 . Core 2 | . . . . . 2 6 . 8 7 . . 1 . 3 6 Treads 11 | . 28 28 28 28 27 27 26 9 . 6 5 . . 2 . Leg 4 | . . . . . . . . . . . 5 18 1 4 . Wheel 5 | . . . . . . . . 9 15 10 3 2 15 8 10 Hover 1 | . . . . . . . . . . . 4 2 3 . . Device 7 | . 6 12 13 . 2 . 8 4 6 12 8 8 12 5 5 Storage 8 | . 13 14 14 14 9 9 9 9 7 7 6 6 5 5 5 Processor 11 | . 7 1 . 14 15 18 9 9 7 7 17 15 17 17 14 Hackware 5 | . . . . . . . . 4 7 2 6 7 8 16 14 Energy Gun 3 | . 2 . . . 3 9 9 9 6 . 2 3 . 3 2 Energy Cannon 3 | . 12 14 13 14 10 . 1 . . 8 2 2 . . . Ballistic Gun 6 | . 7 . . . . 7 7 5 6 8 5 9 5 5 5 Ballistic Cannon 5 | . 4 14 13 14 17 6 6 4 6 5 4 2 5 4 4 Launcher 1 | . . . . . . 3 . 2 . 3 . . . . . Special Weapon 2 | . 1 . . . . . 2 5 . . 3 3 5 1 1 Naked Turns . | . . . . . . . . . . . . . . . . Heaviest Build 89 | 10 32 30 30 29 39 42 43 53 51 73 70 62 66 80 89 Greatest Support 70 | 40 40 40 40 40 40 60 64 30 56 56 55 70 52 52 60 Greatest Overweight (x) 23 | . . . . . . . 1 1 1 23 20 4 5 2 10 Average Overweight (x) . | . . . . . . . . 1 . 1 1 . 1 1 1 Largest Inventory Capacity 15 | 5 15 15 15 15 15 15 15 15 15 15 15 15 15 15 15 Average Capacity 14 | 5 14 15 15 15 15 15 15 15 15 15 15 15 15 15 15 Most Carried 15 | 1 15 15 15 15 15 15 15 15 15 15 15 15 15 15 15 Average Carried 14 | . 11 14 14 15 12 14 14 14 13 14 14 14 13 14 14 Final Capacity 15 | 5 15 15 15 15 15 15 15 15 15 15 15 15 15 15 15 Final Carried 15 | 1 15 15 15 15 15 15 15 15 14 15 15 15 15 15 14 Class Distribution -------------------- 46% | Bothacker-Skirmisher 13% | Botlord-Skirmisher 12% | Skirmisher 8% | Mutant 7% | Bothacker-Gunner 6% | Scavenger-Mutant 3% | Scavenger-Skirmisher Dominant Class ---------------- Mutant | -10/Materials Scavenger-Mutant | -10/Mines Scavenger-Mutant | -10/Exiles Mutant | -9/Mines Skirmisher | -8/Materials Skirmisher | -8/Garrison Bothacker-Skirmisher | -8/Materials Bothacker-Skirmisher | -8/Garrison Bothacker-Skirmisher | -7/Factory Bothacker-Skirmisher | -7/Garrison Bothacker-Skirmisher | -6/Factory Bothacker-Skirmisher | -6/Garrison Botlord-Skirmisher | -5/Factory Botlord-Skirmisher | -5/Garrison Botlord-Skirmisher | -4/Factory Resources | -11 -10 -10 -10 -9 -8 -8 -8 -8 -7 -7 -6 -6 -5 -5 -4 ----------- Run | Yrd Mat Min Exi Min Mat Gar Mat Gar Fac Gar Fac Gar Fac Gar Fac Matter Collected 8941 | 275 269 108 . . 327 518 445 721 522 1243 934 2082 311 793 393 Remotely . | . . . . . . . . . . . . . . . . Salvage Created 9141 | 150 437 152 . . 414 971 617 947 150 1468 749 1567 128 603 788 Parts 477 | 3 26 14 . . 15 64 40 55 9 63 41 74 2 29 42 Haulers Intercepted 3 | . . . . . . . 2 . . . . . . . 1 Recyclers Shooed . | . . . . . . . . . . . . . . . . Parts Field Recycled . | . . . . . . . . . . . . . . . . Retrieved Matter . | . . . . . . . . . . . . . . . . Parts Self-Destructed . | . . . . . . . . . . . . . . . . Prevented . | . . . . . . . . . . . . . . . . Kills | -11 -10 -10 -10 -9 -8 -8 -8 -8 -7 -7 -6 -6 -5 -5 -4 ------- Run | Yrd Mat Min Exi Min Mat Gar Mat Gar Fac Gar Fac Gar Fac Gar Fac Combat Hostiles Destroyed 221 | . 10 8 . . 9 41 13 29 5 37 14 29 3 16 7 Guns 91 | . 1 . . . 6 18 9 12 3 11 4 15 . 11 1 Cannons 80 | . 9 8 . . 3 3 4 5 2 14 10 9 3 5 5 AOE 47 | . . . . . . 20 . 11 . 12 . 3 . . 1 Classes Destroyed 19 | 2 4 1 . . . 1 2 4 1 1 1 1 . . 1 Worker 8 | . 1 . . . . . 1 . . . . . . . 6 Builder 1 | . . . . . . . 1 . . . . . . . . Tunneler 3 | 2 . . . . . . . . . . . . . . 1 Hauler 3 | . . . . . . . 2 . . . . . . . 1 Recycler 4 | 1 1 . . . . . 1 . . . . . . . 1 Mechanic 1 | . . . . . . . . . . . 1 . . . . Watcher 10 | . 1 . . . . . 1 . . . 2 2 . . 4 Swarmer 72 | . 3 6 . . . 23 5 10 1 12 . 2 . 7 3 Cutter 4 | . . . . . . . . . . . . 4 . . . Grunt 87 | . 7 . . . 6 14 6 9 2 17 8 11 3 2 2 Brawler 5 | . . . . . . 1 . 1 . . 1 1 . 1 . Duelist 5 | . . . . . . . . 2 . . . 1 . . 2 Protector 1 | . . . . . . . . . 1 . . . . . . Sentry 31 | . . 2 . . 3 3 2 3 . 7 . 6 . 3 2 Specialist 2 | . . . . . . . . 1 1 . . . . . . Hunter 9 | . . . . . . . . 2 . . 3 4 . . . Programmer 10 | . . . . . . . . . . 1 2 2 . 3 2 Behemoth 2 | . . . . . . . . 1 . . . 1 . . . Executioner 1 | . . . . . . . . . . . . . . . 1 Best Kill Streak 12 | 2 3 3 . . 5 12 6 7 2 5 4 3 2 2 9 Combat Bots Only 12 | . 3 3 . . 5 12 5 7 2 5 3 3 2 2 3 Max Kills in Single Turn 11 | 1 1 1 . . 1 5 2 4 1 3 2 2 1 1 11 Gunslinging . | . . . . . . . . . . . . . . . . Exploded 5 | . . . . . . 5 . 4 . 3 . 1 . . 1 Melee . | . . . . . . . . . . . . . . . . Uniques/NPCs Destroyed . | . . . . . . . . . . . . . . . . Combat | -11 -10 -10 -10 -9 -8 -8 -8 -8 -7 -7 -6 -6 -5 -5 -4 -------- Run | Yrd Mat Min Exi Min Mat Gar Mat Gar Fac Gar Fac Gar Fac Gar Fac Hostile Shots Fired 1212 | . 53 40 . . 28 69 63 85 30 231 60 284 11 63 195 Missed 378 | . 13 11 . . 13 25 26 21 11 78 21 87 1 18 53 Damage Taken 10168 | . 603 227 . . 176 440 351 758 290 1511 639 1881 264 716 2312 Core 2107 | . 107 34 . . . 53 17 105 26 279 72 188 . 64 1162 Absorbed by Shields 143 | . . . . . . . . . . . . 84 . 59 . Ignored by Resistances 2944 | . 105 71 . . 49 135 103 221 81 456 176 583 73 218 673 Regen/Repaired (Parts) 114 | . . . . . . . . . . . 114 . . . . Core Remaining (%) 71 | 100 . . . 43 . . . 68 . 56 . 69 . 93 . Volleys Fired 636 | 5 40 15 . . 10 53 51 54 21 105 45 134 15 54 34 Largest 4 | 2 2 2 . . 4 2 2 2 2 4 4 4 2 3 3 Hottest 250 | 60 160 95 . . 190 95 100 155 89 241 250 250 108 177 163 Shots Fired 1259 | 10 73 32 . . 50 111 92 111 49 192 82 272 24 98 63 Gun 649 | 10 22 . . . 25 63 44 54 29 86 45 160 9 67 35 Cannon 462 | . 42 32 . . 24 24 33 28 20 79 31 86 13 26 24 Launcher 75 | . . . . . . 24 . 19 . 22 . 10 . . . Special 73 | . 9 . . . 1 . 15 10 . 5 6 16 2 5 4 Kinetic 764 | 5 30 16 . . 18 45 67 38 41 107 55 191 22 70 59 Thermal 348 | . 43 16 . . 32 42 25 44 8 58 8 49 . 23 . Explosive 75 | . . . . . . 24 . 19 . 22 . 10 . . . Electromagnetic 24 | 5 . . . . . . . . . . 13 6 . . . Robot Hit Streak 43 | 5 19 13 . . 16 42 43 30 25 22 17 37 9 26 13 Robot Miss Streak 3 | 1 2 2 . . 1 1 2 3 3 3 3 2 1 2 3 Penetration Max 1 | . . . . . . . . 1 1 1 1 1 . . 1 Secondary Targets 2 | . . . . . . . . . . 1 1 . . . . Max Gunslinging Chain 1 | . . . . . . . . . . 1 1 . . . . Autonomous 124 | . . . . . 25 41 8 41 9 . . . . . . Shots Hit Robots 873 | 7 46 22 . . 44 77 61 75 39 107 57 198 18 80 42 Core Hits 432 | 5 18 10 . . 16 62 27 38 12 62 21 99 4 30 28 Critical Kills 16 | . . . . . . . . 5 1 1 . 4 . 3 2 Critical Parts Destroyed 25 | . . . . . . . . 6 10 2 1 1 1 . 4 Critical Strikes 64 | . 1 . . . 3 . 1 12 11 4 3 12 3 7 7 Burn 2 | . . . . . . . . . . . . 1 . 1 . Meltdown 3 | . . . . . . . . 1 . . . 2 . . . Destroy 40 | . . . . . . . . 11 11 3 1 3 1 4 6 Blast 18 | . 1 . . . 3 . 1 . . 1 1 6 2 2 1 Corrupt 1 | . . . . . . . . . . . 1 . . . . Melee Attacks . | . . . . . . . . . . . . . . . . Impact . | . . . . . . . . . . . . . . . . Slashing . | . . . . . . . . . . . . . . . . Piercing . | . . . . . . . . . . . . . . . . Sneak Attacks . | . . . . . . . . . . . . . . . . Combat Hostiles . | . . . . . . . . . . . . . . . . Follow-up Attacks . | . . . . . . . . . . . . . . . . Damage Inflicted 28581 | 125 729 376 . . 1043 2858 1358 2475 967 4000 1868 5808 767 2814 3393 Guns 10788 | 87 131 . . . 653 1462 906 1306 629 1078 699 2288 150 1102 297 Cannons 12069 | . 526 376 . . 387 224 442 387 269 1595 1118 2969 617 1712 1447 Explosions 5639 | 38 . . . . . 1172 . 782 69 1327 51 551 . . 1649 Melee . | . . . . . . . . . . . . . . . . Ramming 13 | . . . . . 3 . 10 . . . . . . . . Kinetic 15642 | 34 182 183 . . 283 621 1075 414 698 1308 1557 4245 767 2531 1744 Thermal 8756 | 38 547 193 . . 757 1065 273 1279 200 1365 104 1003 . 283 1649 Explosive 3772 | . . . . . . 1172 . 782 . 1327 . 491 . . . Electromagnetic 398 | 53 . . . . . . . . 69 . 207 69 . . . Impact . | . . . . . . . . . . . . . . . . Slashing . | . . . . . . . . . . . . . . . . Piercing . | . . . . . . . . . . . . . . . . Highest Corruption 5 | . 4 4 4 4 . . . . 1 1 . 5 . 1 . Average Corruption 2 | . 4 4 4 4 . . . . 1 1 . 4 . 1 . Corruption Purged . | . . . . . . . . . . . . . . . . Corruption Blocked . | . . . . . . . . . . . . . . . . Effects 159 | . 19 17 22 5 . . . . 5 23 . 52 . 16 . Message Errors 42 | . 7 3 7 1 . . . . . 7 . 11 . 6 . Matter Fused 32 | . 3 4 5 1 . . . . . 4 . 13 . 2 . Heat Flow Errors 26 | . 2 3 5 . . . . . 2 7 . 6 . 1 . Energy Discharges 22 | . 5 3 3 1 . . . . . 1 . 5 . 4 . Parts Fused 3 | . . . 1 . . . . . . 1 . 1 . . . Data Loss (minor) 17 | . 1 1 1 2 . . . . 2 2 . 7 . 1 . Data Loss (major) 5 | . . . . . . . . . . . . 3 . 2 . Misfires 8 | . 1 2 . . . . . . . 1 . 4 . . . Alerts 3 | . . 1 . . . . . . 1 . . 1 . . . Weapon Failures 1 | . . . . . . . . . . . . 1 . . . Overload Shots . | . . . . . . . . . . . . . . . . Overflow Damage 1221 | 11 . . . . . 43 6 27 3 60 120 161 . 212 578 Projectiles 786 | . . . . . . . 6 . 3 12 120 161 . 212 272 Explosions 435 | 11 . . . . . 43 . 27 . 48 . . . . 306 Melee . | . . . . . . . . . . . . . . . . Knockbacks 47 | . . 2 . . 1 4 8 1 2 1 4 7 4 8 5 Impact . | . . . . . . . . . . . . . . . . Kinetic 43 | . . 1 . . 1 3 7 1 2 1 4 6 4 8 5 Secondary 4 | . . 1 . . . 1 1 . . . . 1 . . . Self-Inflicted Damage 241 | . . . . . . 20 . 35 31 37 91 27 . . . Shots 15 | . . . . . . 1 . 4 2 5 1 2 . . . Rammed 2 | . . . . . 1 . 1 . . . . . . . . Targets Rammed 2 | . . . . . 1 . 1 . . . . . . . . Kicked . | . . . . . . . . . . . . . . . . Crushed . | . . . . . . . . . . . . . . . . Highest Temperature 486 | . 308 269 210 . 331 30 12 252 213 486 330 450 97 254 288 Average Temperature 90 | . 56 97 91 . 137 7 8 60 75 146 69 104 33 59 66 Received Heat Transfer 3694 | . 234 72 . . 99 225 189 219 126 891 306 434 45 133 721 Effects 11 | . 1 2 . . . . . . 1 4 1 2 . . . Shutdowns 3 | . . . . . . . . . . 2 . 1 . . . Energy Bleed 2 | . 1 . . . . . . . . 1 . . . . . Interference 3 | . . 2 . . . . . . 1 . . . . . . Matter Decay 2 | . . . . . . . . . . . 1 1 . . . Damage (minor) 1 | . . . . . . . . . . 1 . . . . . Siege Activations . | . . . . . . . . . . . . . . . . Robots Corrupted . | . . . . . . . . . . . . . . . . Combat Hostiles . | . . . . . . . . . . . . . . . . Parts Fried . | . . . . . . . . . . . . . . . . Impact Corruptions 1 | . . . . . . . . . . . . 1 . . . Robots Melted 3 | . . . . . . . . 1 . . . 2 . . . Combat Hostiles 3 | . . . . . . . . 1 . . . 2 . . . Parts Melted 19 | . . . . . 2 1 2 3 . 3 . 6 1 1 . Heat Transferred 11637 | 100 1149 407 . . 1036 1252 370 1535 221 2097 137 1461 . 572 1300 Parts Sabotaged 3 | . . . . . . . . . . . . . . . 3 Parts Stolen . | . . . . . . . . . . . . . . . . Parts Stripped . | . . . . . . . . . . . . . . . . Power Chain Reactions 2 | 1 . . . . . . . . . . . 1 . . . Alert | -11 -10 -10 -10 -9 -8 -8 -8 -8 -7 -7 -6 -6 -5 -5 -4 ------- Run | Yrd Mat Min Exi Min Mat Gar Mat Gar Fac Gar Fac Gar Fac Gar Fac Peak Influence 3042 | 15 179 128 . . 258 1727 1039 2398 1285 2698 1228 3042 1446 1748 1689 Initial 1383 | . 8 3 . . . 146 724 561 1090 746 1227 381 1383 766 794 Average 1141 | 6 43 71 . . 79 985 904 1415 1144 1709 965 1433 1350 1267 1186 Maximum Alert Level 5 | . . . . . 1 5 3 5 4 5 4 5 4 5 5 Low Security (%) 13 | 100 100 100 . 100 91 10 . . . . . . . . . Level 1 1 | . . . . . 8 10 . . . . . 3 . . . Level 2 8 | . . . . . . 20 . 9 . . 2 28 . . . Level 3 26 | . . . . . . 9 100 16 24 21 77 15 . 26 54 Level 4 26 | . . . . . . 32 . 44 75 23 19 10 100 51 42 Level 5 22 | . . . . . . 16 . 28 . 54 . 42 . 22 2 High Security . | . . . . . . . . . . . . . . . . Max Security . | . . . . . . . . . . . . . . . . Squads Dispatched 37 | . 1 . . . 4 . 6 . 6 . 10 . 4 . 6 Investigation 13 | . 1 . . . 2 . 3 . 1 . 3 . 3 . . Extermination 5 | . . . . . . . . . . . 4 . . . 1 Reinforcement 6 | . . . . . . . 2 . 1 . 1 . . . 2 Assault 8 | . . . . . . . . . 2 . 2 . 1 . 3 Garrison 5 | . . . . . 2 . 1 . 2 . . . . . . Intercept . | . . . . . . . . . . . . . . . . Searches Triggered . | . . . . . . . . . . . . . . . . Construction Impeded 2 | . . . . . . . . . 1 . . . . . 1 Haulers Reinforced 2 | . . . . . . . . . . . 1 . . . 1 Active Scanning Responses . | . . . . . . . . . . . . . . . . Cargo Convoy Interrupts . | . . . . . . . . . . . . . . . . Alert ID Control Effect 3 | . . . . . . . . . . . . . . 1 2 Stealth | -11 -10 -10 -10 -9 -8 -8 -8 -8 -7 -7 -6 -6 -5 -5 -4 --------- Run | Yrd Mat Min Exi Min Mat Gar Mat Gar Fac Gar Fac Gar Fac Gar Fac Distress Signals 2 | . . . . . . . 1 . . . . . . . 1 Communications Jammed 252 | . . . . . . . . . . . . 1 47 . 204 Distress Signals 252 | . . . . . . . . . . . . 1 47 . 204 Times Spotted 369 | . 18 7 . . 12 39 25 31 21 49 21 55 9 34 48 Peak Tracking Total 12 | . 3 3 . . 3 9 5 6 6 8 5 5 5 8 12 Tactical Retreats 20 | . 1 . . . . 1 1 . . 3 . 5 2 4 3 Traps | -11 -10 -10 -10 -9 -8 -8 -8 -8 -7 -7 -6 -6 -5 -5 -4 ------- Run | Yrd Mat Min Exi Min Mat Gar Mat Gar Fac Gar Fac Gar Fac Gar Fac Traps Triggered 27 | . . . . . . . . 9 . 8 . 3 1 6 . Indirectly . | . . . . . . . . . . . . . . . . Trap Hack Attempts . | . . . . . . . . . . . . . . . . Triggered . | . . . . . . . . . . . . . . . . Disarmed . | . . . . . . . . . . . . . . . . Reprogrammed . | . . . . . . . . . . . . . . . . Reused . | . . . . . . . . . . . . . . . . Traps Extracted . | . . . . . . . . . . . . . . . . Installed . | . . . . . . . . . . . . . . . . Triggered . | . . . . . . . . . . . . . . . . Machines | -11 -10 -10 -10 -9 -8 -8 -8 -8 -7 -7 -6 -6 -5 -5 -4 ---------- Run | Yrd Mat Min Exi Min Mat Gar Mat Gar Fac Gar Fac Gar Fac Gar Fac Machines Disabled 60 | . . . . . . 5 4 8 9 14 3 8 . 3 6 Max in Single Turn 4 | . . . . . . 1 1 1 2 2 1 1 . 1 4 Garrison Relay 29 | . . . . . . 5 . 8 . 6 . 7 . 3 . Machines Repaired . | . . . . . . . . . . . . . . . . Machines Dismantled . | . . . . . . . . . . . . . . . . Machines Sabotaged . | . . . . . . . . . . . . . . . . Overloaded Fab Kills . | . . . . . . . . . . . . . . . . Hacking | -11 -10 -10 -10 -9 -8 -8 -8 -8 -7 -7 -6 -6 -5 -5 -4 --------- Run | Yrd Mat Min Exi Min Mat Gar Mat Gar Fac Gar Fac Gar Fac Gar Fac Machines Accessed 43 | . 3 . 3 . 2 4 7 5 3 1 4 3 6 2 . Terminals 28 | . 2 . . . 1 4 4 5 2 1 1 3 3 2 . Fabricators 2 | . . . . . . . . . . . 1 . 1 . . Repair Stations 1 | . . . . . . . . . . . 1 . . . . Recycling Units 3 | . 1 . . . . . 2 . . . . . . . . Scanalyzers 1 | . . . . . . . . . . . . . 1 . . Garrison Access 5 | . . . . . 1 . 1 . 1 . 1 . 1 . . Total Hacks 123 | . 11 . 11 . 7 8 23 12 7 2 15 7 16 4 . Successful 64 | . 6 . 11 . 3 2 9 1 4 1 14 1 10 2 . Failed 59 | . 5 . . . 4 6 14 11 3 1 1 6 6 2 . Catastrophic 13 | . 1 . . . 1 1 6 1 . . . 1 2 . . Database Lockouts . | . . . . . . . . . . . . . . . . Manual 56 | . 5 . 5 . 2 3 14 1 3 . 2 6 12 3 . Terminals 87 | . 10 . . . 4 8 17 12 5 2 7 7 11 4 . Fabricators 4 | . . . . . . . . . . . 3 . 1 . . Repair Stations 3 | . . . . . . . . . . . 3 . . . . Recycling Units 5 | . 1 . . . . . 4 . . . . . . . . Scanalyzers 2 | . . . . . . . . . . . . . 2 . . Garrison Access 11 | . . . . . 3 . 2 . 2 . 2 . 2 . . Terminal Hacks 38 | . 5 . 11 . 2 2 5 1 2 1 6 1 1 1 . Record 18 | . 1 . 10 . 1 . 3 . . . 3 . . . . Prototype ID Bank 1 | . . . . . . . . . . . 1 . . . . Open Door 1 | . . . . . . 1 . . . . . . . . . Level Access Points 1 | . . . . . . . 1 . . . . . . . . Branch Access Points 2 | . 2 . . . . . . . . . . . . . . Emergency Access Points 1 | . . . . . . . . 1 . . . . . . . Alert Level 1 | . . . . . . . . . . . 1 . . . . Unreport Threat 1 | . . . . . . . . . 1 . . . . . . Patrol Status 1 | . . . . . . . . . . . . . 1 . . Transport Status 1 | . . . . . 1 . . . . . . . . . . Investigation Status 1 | . 1 . . . . . . . . . . . . . . Hauler Manifests 1 | . . . . . . . . . 1 . . . . . . Zone Layout 3 | . 1 . . . . . 1 . . . 1 . . . . Garrison Registry 3 | . . . . . . . . . . 1 . 1 . 1 . Patrol Navigation 1 | . . . . . . 1 . . . . . . . . . Derelict Proto ID Bank 1 | . . . 1 . . . . . . . . . . . . Fabricator Hacks 4 | . . . . . . . . . . . 3 . 1 . . Network Status 4 | . . . . . . . . . . . 3 . 1 . . Repair Station Hacks 3 | . . . . . . . . . . . 3 . . . . Scan Component 2 | . . . . . . . . . . . 2 . . . . Repair 1 | . . . . . . . . . . . 1 . . . . Recycling Unit Hacks 3 | . 1 . . . . . 2 . . . . . . . . Report Inventory 3 | . 1 . . . . . 2 . . . . . . . . Scanalyzer 2 | . . . . . . . . . . . . . 2 . . Insert Component 1 | . . . . . . . . . . . . . 1 . . Analyze 1 | . . . . . . . . . . . . . 1 . . Garrison Access Hacks 9 | . . . . . 1 . 2 . 2 . 2 . 2 . . Unlock Access 5 | . . . . . 1 . 1 . 1 . 1 . 1 . . Coupler Status 4 | . . . . . . . 1 . 1 . 1 . 1 . . Unauthorized Hacks 5 | . . . . . . . . . . . . . 4 1 . Terminals 5 | . . . . . . . . . . . . . 4 1 . Track 1 | . . . . . . . . . . . . . 1 . . Botnet 4 | . . . . . . . . . . . . . 3 1 . Fabricators . | . . . . . . . . . . . . . . . . Repair Stations . | . . . . . . . . . . . . . . . . Recycling Units . | . . . . . . . . . . . . . . . . Scanalyzers . | . . . . . . . . . . . . . . . . Garrison Access . | . . . . . . . . . . . . . . . . Data Cores Recovered . | . . . . . . . . . . . . . . . . Used . | . . . . . . . . . . . . . . . . Hacking Detections 36 | . 2 . . . 2 4 6 5 2 1 4 3 6 1 . Full Trace Events 22 | . 1 . . . 2 2 4 3 1 . 3 2 3 1 . Feedback Events . | . . . . . . . . . . . . . . . . Feedback Blocked . | . . . . . . . . . . . . . . . . Robot Schematics Acquired . | . . . . . . . . . . . . . . . . Robots Built . | . . . . . . . . . . . . . . . . Authchips . | . . . . . . . . . . . . . . . . Time . | . . . . . . . . . . . . . . . . Total Robot Build Rating . | . . . . . . . . . . . . . . . . Part Schematics Acquired 1 | . . . . . . . . . . . . . 1 . . Parts Built . | . . . . . . . . . . . . . . . . Authchips . | . . . . . . . . . . . . . . . . Time . | . . . . . . . . . . . . . . . . Total Part Build Rating . | . . . . . . . . . . . . . . . . Parts Repaired 1 | . . . . . . . . . . . 1 . . . . Time 56 | . . . . . . . . . . . 56 . . . . Parts Recycled . | . . . . . . . . . . . . . . . . Recycled Matter . | . . . . . . . . . . . . . . . . Retrieved Matter . | . . . . . . . . . . . . . . . . Retrieved Components . | . . . . . . . . . . . . . . . . Parts Scanalyzed 1 | . . . . . . . . . . . . . 1 . . Part Schematics Acquired 1 | . . . . . . . . . . . . . 1 . . Parts Damaged . | . . . . . . . . . . . . . . . . Bothacking | -11 -10 -10 -10 -9 -8 -8 -8 -8 -7 -7 -6 -6 -5 -5 -4 ------------ Run | Yrd Mat Min Exi Min Mat Gar Mat Gar Fac Gar Fac Gar Fac Gar Fac Used RIF Installer 6 | . . . . . . 1 . 1 . 1 . 2 . 1 . Code Merge 1 | . . . . . . . . . . . . 1 . . . Signal Jammer 1 | . . . . . . . . 1 . . . . . . . Watcher Feeds 1 | . . . . . . . . . . 1 . . . . . Alert ID Control 1 | . . . . . . . . . . . . . . 1 . Structural Interface 1 | . . . . . . . . . . . . 1 . . . Robots Hacked 44 | . . . . . . . . 8 . 4 6 15 2 5 4 Non-combat 5 | . . . . . . . . . . . 3 . 1 . 1 Combat 39 | . . . . . . . . 8 . 4 3 15 1 5 3 Robot Hacks Applied 45 | . . . . . . . . 9 . 4 6 15 2 5 4 parse_system 2 | . . . . . . . . 1 . . . 1 . . . ignore_parts 2 | . . . . . . . . . . . 2 . . . . link_fov 1 | . . . . . . . . . . . . . 1 . . mark_system 1 | . . . . . . . . 1 . . . . . . . wipe_record 1 | . . . . . . . . . . 1 . . . . . disable_weapons 1 | . . . . . . . . . . . . 1 . . . go_dormant 1 | . . . . . . . . 1 . . . . . . . streamctrl_high 3 | . . . . . . . . 1 . . 1 . . . 1 formatsys_low 2 | . . . . . . . . . . . 1 . . . 1 formatsys_high 31 | . . . . . . . . 5 . 3 2 13 1 5 2 Relay Couplers Released 116 | . . . . . . 20 . 31 . 28 . 25 . 12 . Machine Destruction 116 | . . . . . . 20 . 31 . 28 . 25 . 12 . Attached 21 | . . . . . . . . 6 . 1 2 7 1 3 1 Merged Code Value 124 | . . . . . . . . . . . . 88 . 36 . Fabnet Peak Effective % . | . . . . . . . . . . . . . . . . Robots Rewired 17 | . . . . . . 3 . . . . . 6 . 8 . Allies Hacked 3 | . . . . . . . . . . . . 2 . 1 . Hacks Repelled . | . . . . . . . . . . . . . . . . Allies | -11 -10 -10 -10 -9 -8 -8 -8 -8 -7 -7 -6 -6 -5 -5 -4 -------- Run | Yrd Mat Min Exi Min Mat Gar Mat Gar Fac Gar Fac Gar Fac Gar Fac Total Allies 55 | . . . . . . 3 . 8 . 3 4 19 1 13 4 Largest Group 10 | . . . . . . 3 3 6 6 2 2 10 6 10 10 Highest-Rated Group 600 | . . . . . . 95 95 138 138 32 81 302 190 589 600 Highest-Rated Ally 119 | . . . . . . 39 39 85 40 31 47 47 47 119 119 Total Orders 70 | . . . 1 . . . 2 10 2 . 4 2 7 23 19 STAY 35 | . . . . . . . 1 6 2 . 1 1 3 9 12 FOLLOW 32 | . . . . . . . . 4 . . 2 1 4 14 7 AID 2 | . . . . . . . 1 . . . 1 . . . . RETURN 1 | . . . 1 . . . . . . . . . . . . Ally Attacks 400 | . . . . . . . 59 3 66 9 18 75 34 48 88 Total Damage 9181 | . . . . . . . 894 64 1357 111 386 1548 616 1379 2826 Kills 76 | . . . . . . . 8 1 15 1 3 8 2 10 28 Allies Corrupted 2 | . . . . . . . . . . . . 1 . 1 . Allies Melted . | . . . . . . . . . . . . . . . . Intel | -11 -10 -10 -10 -9 -8 -8 -8 -8 -7 -7 -6 -6 -5 -5 -4 ------- Run | Yrd Mat Min Exi Min Mat Gar Mat Gar Fac Gar Fac Gar Fac Gar Fac Robot Analysis Total . | . . . . . . . . . . . . . . . . Derelict Logs Recovered 2 | . . 2 . . . . . . . . . . . . . Drone Launches 1 | . . . 1 . . . . . . . . . . . . Drone Recoveries 1 | . . . 1 . . . . . . . . . . . . Exploration | -11 -10 -10 -10 -9 -8 -8 -8 -8 -7 -7 -6 -6 -5 -5 -4 ------------- Run | Yrd Mat Min Exi Min Mat Gar Mat Gar Fac Gar Fac Gar Fac Gar Fac Turns Passed 21382 | 118 1280 606 1105 195 298 2073 1075 2530 667 2594 2057 3845 599 1781 559 Spaces Moved 12644 | 67 668 335 681 97 126 1142 540 1841 508 1687 918 2173 452 1107 302 Core 47 | 12 . . . . . . . . . 1 15 . . . 19 Treads 3694 | 55 668 335 681 97 126 1142 519 44 . 27 . . . . . Legs 1708 | . . . . . . . . . . . 224 1484 . . . Wheels 6858 | . . . . . . . 21 1797 508 1659 636 395 452 1107 283 Hover 337 | . . . . . . . . . . . 43 294 . . . Flight . | . . . . . . . . . . . . . . . . Fastest Speed 50 | 50 160 160 160 160 160 160 115 115 100 115 116 105 105 108 115 Average Speed 133 | 140 160 160 160 160 160 160 150 117 106 126 150 119 108 119 136 Slowest Speed 1200 | 160 160 160 160 160 160 160 240 240 115 1200 1050 260 165 130 550 Overloaded Moves . | . . . . . . . . . . . . . . . . Propulsion Burnouts . | . . . . . . . . . . . . . . . . Robots Hopped . | . . . . . . . . . . . . . . . . Cave-ins Triggered 1 | . 1 . . . . . . . . . . . . . . Exploration Rate (%) 47 | 4 65 53 78 13 7 88 39 92 10 93 11 97 11 86 11 Regions Visited 15 Branch Regions 3 Pre-discovered Areas 1 | . . 1 . . . . . . . . . . . . . Known Exits Taken 6 | . 1 . . . 1 . 1 . 1 . 1 . 1 . . Unknown Exits Taken 4 | 1 . 1 1 1 . . . . . . . . . . . Scrap Searched . | . . . . . . . . . . . . . . . . Spaces Dug 197 | . 6 . . . 1 . 14 2 . 118 8 43 5 . . Terrain Destroyed 649 | 5 6 . . . 4 80 15 55 . 262 36 151 6 9 20 Melee . | . . . . . . . . . . . . . . . . Projectile 88 | . 6 . . . 4 . 15 . . 9 18 17 6 8 5 AOE 560 | 5 . . . . . 80 . 55 . 253 18 134 . . 15 Terrain Rammed . | . . . . . . . . . . . . . . . . Walls Destroyed . | . . . . . . . . . . . . . . . . Machines Disabled . | . . . . . . . . . . . . . . . . Actions | -11 -10 -10 -10 -9 -8 -8 -8 -8 -7 -7 -6 -6 -5 -5 -4 --------- Run | Yrd Mat Min Exi Min Mat Gar Mat Gar Fac Gar Fac Gar Fac Gar Fac Total 16032 | 78 789 377 698 137 199 1318 685 2127 591 1978 1507 3179 530 1458 381 Wait 1915 | . 43 13 . 41 46 55 50 137 42 73 490 645 47 217 16 Move 12630 | 66 667 334 680 96 126 1141 539 1839 507 1686 917 2172 452 1106 302 Hop . | . . . . . . . . . . . . . . . . Pick Up 110 | 1 20 3 1 . 4 6 9 14 6 10 12 18 1 4 1 Fast Attach 78 | 6 3 . 5 . 1 1 3 1 . 9 7 23 5 10 4 Attach 63 | . 3 . 1 . 5 3 2 5 4 5 6 16 4 4 5 Detach 34 | . . . 1 . 3 . 1 5 . 2 1 10 3 4 4 Swap 178 | . 8 6 1 . 3 12 14 35 6 23 18 28 3 10 11 Drop 130 | . 5 6 7 . 1 9 15 12 5 14 11 30 . 11 4 Fire 636 | 5 40 15 . . 10 53 51 54 21 105 45 134 15 54 34 Melee . | . . . . . . . . . . . . . . . . Ram . | . . . . . . . . . . . . . . . . Kick . | . . . . . . . . . . . . . . . . Crush 1 | . . . . . . . 1 . . . . . . . . Escape Stasis 98 | . . . . . . . . 24 . 48 . 18 . 8 . Rewire 159 | . . . 2 . . 38 . 1 . 3 . 85 . 30 . Trap . | . . . . . . . . . . . . . . . . Miscellaneous . | . . . . . . . . . . . . . . . . Route ------- -11/Scrapyard -10/Materials (discovered 3 exits: [*Mat x2] / *Min) -10/Mines (discovered 2 exits: [*Mat] / *Exi) -10/Exiles -9/Mines -8/Materials (discovered 2 exits: Fac / Gar) -8/Garrison (discovered 4 exits: *Fac x3 / *Mat) -8/Materials (discovered 4 exits: *Fac x3 / Gar) -8/Garrison (discovered 3 exits: *Fac x3) -7/Factory -7/Garrison (discovered 3 exits: *Fac x3) -6/Factory -6/Garrison (discovered 3 exits: *Fac x3) -5/Factory -5/Garrison (discovered 3 exits: *Fac x3) -4/Factory History --------- Turn | Location | Event 10 | -11/Scrapyard | Discovered new exit (range 14) 119 | -11/Scrapyard | Entered Materials 183 | -10/Materials | Identified exit to Mines 324 | -10/Materials | Build established: Mutant 555 | -10/Materials | Discovered new exit (range 16) 725 | -10/Materials | Crushed by falling debris 983 | -10/Materials | Discovered new exit (range 18) 1399 | -10/Materials | Entered Mines 1441 | -10/Mines | A weapon hastily lodged in a ceiling crevice suddenly fell to the ground 1486 | -10/Mines | Discovered new exit (range 9) 1618 | -10/Mines | Learned location of Zion (-7) 1752 | -10/Mines | Learned location of 1 exit from Materials 1852 | -10/Mines | Deemed a non-threat by the Exiles lab entrance 1852 | -10/Mines | Discovered new exit (range 5) 1917 | -10/Mines | Core integrity fell below 50% 1957 | -10/Mines | Build established: Scavenger-Mutant 2005 | -10/Mines | Entered Exiles 2049 | -10/Exiles | Met 8R-AWN 2071 | -10/Exiles | Met EX-HEX 2122 | -10/Exiles | Met EX-BIN 2145 | -10/Exiles | Met EX-DEC 2480 | -10/Exiles | Visited The Gauntlet 2759 | -10/Exiles | Aligned with FarCom system 2761 | -10/Exiles | Given EX-Vault access code 2798 | -10/Exiles | Opened EX-Vault 2821 | -10/Exiles | Found Prototype Energy Gun 2823 | -10/Exiles | Identified AWS/Thermal 2826 | -10/Exiles | Found Prototype Slashing Weapon 2826 | -10/Exiles | Identified Longsword +1 2834 | -10/Exiles | Found Prototype Device 2834 | -10/Exiles | Identified Supersonic Drone Bay 2933 | -10/Exiles | Warned to stay clear of 0b10 Research branches 3090 | -10/Exiles | Discovered new exit (range 14) 3110 | -10/Exiles | Left Exiles lab with AWS/Thermal 3110 | -10/Exiles | Entered Mines 3249 | -9/Mines | Discovered new exit (range 9) 3305 | -9/Mines | Entered Materials 3305 | -8/Materials | Evolved 4 slots: Propulsion x1, Utility x1, Weapon x2 3306 | -8/Materials | Identified exit to Factory 3503 | -8/Materials | Garrison activated, responded to threat 3601 | -8/Materials | Identified exit to Garrison 3603 | -8/Materials | Entered Garrison 3639 | -8/Garrison | Garrison Relay disabled 3668 | -8/Garrison | Build established: Skirmisher 3816 | -8/Garrison | Triggered checkpoint 3845 | -8/Garrison | Garrison Relay disabled 4024 | -8/Garrison | Triggered checkpoint 4049 | -8/Garrison | Triggered checkpoint 4268 | -8/Garrison | Discovered exit to Factory (range 12) 4312 | -8/Garrison | Triggered checkpoint 4348 | -8/Garrison | Garrison Relay disabled 4381 | -8/Garrison | Installed Relay Interface Framework 4462 | -8/Garrison | Triggered checkpoint 4497 | -8/Garrison | Discovered new exit (range 6) 4642 | -8/Garrison | Triggered checkpoint 4645 | -8/Garrison | Triggered checkpoint 4677 | -8/Garrison | Destroyed 12 combat bots 4767 | -8/Garrison | Discovered exit to Factory (range 11) 4802 | -8/Garrison | Triggered checkpoint 4845 | -8/Garrison | Garrison Relay disabled 5051 | -8/Garrison | Discovered exit to Factory (range 14) 5212 | -8/Garrison | Triggered checkpoint 5233 | -8/Garrison | Garrison Relay disabled 5280 | -8/Garrison | Triggered checkpoint 5652 | -8/Garrison | Build established: Scavenger-Skirmisher 5676 | -8/Garrison | Entered Materials 5676 | -8/Materials | Accompanied by 3 allies 6295 | -8/Materials | Lost 3 allies 6315 | -8/Materials | Build established: Bothacker-Skirmisher 6671 | -8/Materials | Garrison activated, responded to threat 6736 | -8/Materials | Identified exit to Garrison 6751 | -8/Materials | Entered Garrison 6830 | -8/Garrison | Triggered checkpoint 6853 | -8/Garrison | Garrison Relay disabled 6896 | -8/Garrison | Spotted B-75 Beast 6899 | -8/Garrison | Hijacked Beast 3a control node with streamctrl_high 6995 | -8/Garrison | Destroyed Beast 3a 7116 | -8/Garrison | Triggered checkpoint 7118 | -8/Garrison | Triggered checkpoint 7185 | -8/Garrison | Build established: Skirmisher 7347 | -8/Garrison | Destroyed 7 combat bots 7434 | -8/Garrison | Discovered exit to Factory (range 15) 7500 | -8/Garrison | Triggered checkpoint 7514 | -8/Garrison | Garrison Relay disabled 7699 | -8/Garrison | Discovered exit to Factory (range 14) 7843 | -8/Garrison | Expanded RIF knowledge: Signal Jamming 7845 | -8/Garrison | Build established: Bothacker-Skirmisher 7984 | -8/Garrison | Triggered checkpoint 8220 | -8/Garrison | Triggered checkpoint 8251 | -8/Garrison | Garrison Relay disabled 8388 | -8/Garrison | Triggered checkpoint 8554 | -8/Garrison | Discovered exit to Factory (range 10) 8637 | -8/Garrison | Garrison Relay disabled 8639 | -8/Garrison | Garrison Relay disabled 8663 | -8/Garrison | Garrison Relay disabled 8669 | -8/Garrison | Garrison Relay disabled 8820 | -8/Garrison | Triggered checkpoint 8852 | -8/Garrison | Garrison Relay disabled 9148 | -8/Garrison | Rescued a captive Derelict 9156 | -8/Garrison | Rescued a captive Derelict 9281 | -8/Garrison | Entered Factory 9281 | -7/Factory | Accompanied by 6 allies 9281 | -7/Factory | Evolved 2 slots: Propulsion x1, Utility x1 9681 | -7/Factory | First assault squad dispatched 9745 | -7/Factory | Identified exit to Garrison 9788 | -7/Factory | Garrison activated, responded to threat 9948 | -7/Factory | Entered Garrison 9948 | -7/Garrison | Accompanied by 1 ally 10063 | -7/Garrison | Triggered checkpoint 10230 | -7/Garrison | Triggered checkpoint 10409 | -7/Garrison | Build established: Bothacker-Gunner 10646 | -7/Garrison | Triggered checkpoint 10900 | -7/Garrison | Triggered checkpoint 10943 | -7/Garrison | Discovered new exit (range 11) 10970 | -7/Garrison | Build established: Bothacker-Skirmisher 11038 | -7/Garrison | Triggered checkpoint 11159 | -7/Garrison | Discovered new exit (range 31) 11159 | -7/Garrison | Discovered new exit (range 48) 11159 | -7/Garrison | Discovered new exit (range 58) 11274 | -7/Garrison | Triggered checkpoint 11330 | -7/Garrison | Triggered checkpoint 11393 | -7/Garrison | Triggered checkpoint 11394 | -7/Garrison | Triggered checkpoint 11408 | -7/Garrison | Garrison Relay disabled 11438 | -7/Garrison | Lost 3 allies 11556 | -7/Garrison | Expanded RIF knowledge: Watcher Feeds 11588 | -7/Garrison | Garrison Relay disabled 11978 | -7/Garrison | Garrison Relay disabled 12269 | -7/Garrison | Garrison Relay disabled 12542 | -7/Garrison | Entered Factory 12542 | -6/Factory | Evolved 2 slots: Utility x2 13431 | -6/Factory | Build established: Bothacker-Gunner 13592 | -6/Factory | First assault squad dispatched 13716 | -6/Factory | Repaired Adv. Plasma Cannon 14086 | -6/Factory | Build established: Bothacker-Skirmisher 14597 | -6/Factory | Identified exit to Garrison 14599 | -6/Factory | Entered Garrison 14696 | -6/Garrison | Triggered checkpoint 14760 | -6/Garrison | Expanded RIF knowledge: Structural Interface 14773 | -6/Garrison | Discovered new exit (range 58) 14773 | -6/Garrison | Discovered new exit (range 77) 14773 | -6/Garrison | Discovered new exit (range 48) 14839 | -6/Garrison | Garrison Relay disabled 15886 | -6/Garrison | Spotted B-75 Beast 16052 | -6/Garrison | Destroyed B-75 Beast 16130 | -6/Garrison | Triggered checkpoint 16427 | -6/Garrison | Identified exit to Factory 16440 | -6/Garrison | Triggered checkpoint 16536 | -6/Garrison | Triggered checkpoint 16557 | -6/Garrison | Garrison Relay disabled 16605 | -6/Garrison | Garrison Relay disabled 16693 | -6/Garrison | Lost 3 parts (2u1w) 16772 | -6/Garrison | Garrison Relay disabled 16801 | -6/Garrison | Garrison Relay disabled 16906 | -6/Garrison | Triggered checkpoint 17130 | -6/Garrison | Triggered checkpoint 17176 | -6/Garrison | Triggered checkpoint 17193 | -6/Garrison | Expanded RIF knowledge: Code Merge 17474 | -6/Garrison | Garrison Relay disabled 17494 | -6/Garrison | Triggered checkpoint 17525 | -6/Garrison | P-60 Hacker assimilated allied Guardian 5c 17722 | -6/Garrison | Triggered checkpoint 17761 | -6/Garrison | Lost 3 allies 17880 | -6/Garrison | Build established: Botlord-Skirmisher 18238 | -6/Garrison | Garrison Relay disabled 18444 | -6/Garrison | Entered Factory 18444 | -5/Factory | Accompanied by 6 allies 18444 | -5/Factory | Evolved 2 slots: Utility x2 18645 | -5/Factory | Lost 4 allies 18744 | -5/Factory | First assault squad dispatched 18898 | -5/Factory | Lost 3 allies 18903 | -5/Factory | Lost 3 parts (2n1u) 19043 | -5/Factory | Identified exit to Garrison 19043 | -5/Factory | Entered Garrison 19135 | -5/Garrison | Discovered new exit (range 44) 19135 | -5/Garrison | Discovered new exit (range 51) 19135 | -5/Garrison | Discovered new exit (range 50) 19147 | -5/Garrison | Build established: Bothacker-Skirmisher 19328 | -5/Garrison | Triggered checkpoint 19378 | -5/Garrison | Garrison Relay disabled 19480 | -5/Garrison | Triggered checkpoint 19480 | -5/Garrison | Triggered checkpoint 19684 | -5/Garrison | Build established: Botlord-Skirmisher 20012 | -5/Garrison | Expanded RIF knowledge: Alert ID Control 20060 | -5/Garrison | Identified exit to Factory 20089 | -5/Garrison | Garrison Relay disabled 20230 | -5/Garrison | Triggered checkpoint 20416 | -5/Garrison | Garrison Relay disabled 20504 | -5/Garrison | Triggered checkpoint 20562 | -5/Garrison | Triggered checkpoint 20644 | -5/Garrison | Rewired Executioner 20651 | -5/Garrison | Rewired Executioner 20824 | -5/Garrison | Entered Factory 20824 | -4/Factory | Accompanied by 10 allies 20824 | -4/Factory | Evolved 2 slots: Power x1, Utility x1 21116 | -4/Factory | First assault squad dispatched 21169 | -4/Factory | Destroyed Executioner 21200 | -4/Factory | Lost 5 allies 21314 | -4/Factory | Lost 7 allies 21363 | -4/Factory | Core integrity fell below 50% 21376 | -4/Factory | Core integrity fell below 20% 21383 | -4/Factory | Destroyed by G-67 Veteran with Field Laser Last Messages --------------- 21302_ U-05 Engineer lays Concrete. 21302_ K-01 Serf collects debris. 21302_ U-05 Engineer lays Concrete. 21304_ Arm. Huge Wheel destroyed. 21321_ Adv. Signal Interpreter destroyed. 21324_ ALERT: Significant disruption in Zone 1A, assault force dispatched. 21327_ Imp. Transmission Jammer destroyed. 21333_ Critical hit (Burn: +37). 21342_ Mic. Fission Core destroyed. 21351_ Adv. Heat Sink destroyed. 21353_ Adv. Targeting Computer destroyed. 21359_ Relay Coupler [NC] destroyed. 21359_ M-28 Smith repairs G-73 Enforcer. 21362_ Critical hit (Burn: +37). 21376_ M-28 Smith repairs G-67 Veteran. 21379_ Critical hit (Burn: +37). 21380_ Hacking Suite destroyed. 21382_ Critical hit (Burn: +37). [Achievement: 20k Club] [Achievement: 30k Club] Map ----- +----------------------------------------------------+ | ????????????# # # ! | | ????????????# # # !! % = | | ????????????# # "" "" # % * | | ????????????#% # ""S"" # % %[ =[ | | ????????????# # """" = # [! % | | ????????????# # # * | | ????????????# ############## % | | ????????????# #?? ?# ! # | | ???????????? #????? # %% | | ??????????? #??????? # % = | | ?????????? """ """ #?????????? " %! | | ????????? """ """ #????????????# % = " | | ???????? """ """ #????????????# # % "" | | ????????"" ^ #????????????# # " "" | | ???????"R #????????????# # """" | | ?????? """ !#????????????# # """" | | ??????? ] #????????????# # """" | | ??????? #????????????# # | | ???????#+###???#####???????????????# ######### | | ???????????????????????????????????# #???????? | | ???????????????????????############# #???????? | | ???????????????????????# # #???????? | | ???????????????????????# # d#???????? | | ???????????????????????# # d #???????? | | ???????????????????????# g/ #???? "" | | ???????????????????????# @ # #???? "F | | ???????????????????????# g # #???? """ | | ???????????????????????#gm g + #????? ? | | ???????????????????????###+###########+#+#???????? | | ???????????????????????? ????????????????????? | | ???????????????????????# ???????????????????? | | ???????????????????????# ^ ??????????????????? | | ???????????????????????# ###?????????????????? | | ???????????????????????# #???????????????????? | | ???????????????????????# #???????????????????? | | ???????????????????????# #???????????????????? | | ??????????????????????? T???????????????????? | | ??????????????????????? ???????????????????? | | ?????????????????????? #???????????????????? | | ?????????????????????? #???????????????????? | | ?????????????????????? #???????????????????? | | ????????????????????? #???????????????????? | | ????????????????????? #???????????????????? | | ????????????????????? #???????????????????? | | ???????????????????? #???????????????????? | | ???????????????????? #???????????????????? | | ?????????????????????? ????????????????????? | | ???????????????????????? ????????????????????? | | ?????????????????????????????????????????????????? | | ?????????????????????????????????????????????????? | +----------------------------------------------------+ Best States ------------- Heat Dissipation 62 Energy Generation 28 Energy Capacity 370 Matter Stores 320 Matter Capacity 400 Sight Range 22 Terrain Scan Range 16 Terrain Scan Density 10 Jamming Range 14 Armor Coverage 150 Resistance: KI 20 Resistance: TH 20 Resistance: EX 20 Resistance: EM 20 Resistance: I 20 Resistance: S 20 Resistance: P 20 Phase Shifting 15 Evasion (%) 59 Targeting Accuracy 8 Recoil Reduction 3 Particle Charging 20 Kinecelleration 30 Offensive Hacking 20 Relay Coupler Types 3 Relay Coupler Value 157 Item Schematics ----------------- Arm. Wheel | -5/Factory | Scanalyzed Robot Schematics ------------------ None Fabricated ------------ Nothing Alien Tech Used ----------------- None Achievements -------------- 20k Club 30k Club A New Friend Assimilation Complete Backstab Collateral Damage Generalissimo Infiltrator No Signal Quantum Hacking Quick And Dirty Significant Disruption Total Silence True Hacker Unlikely Earthworm Challenges ------------ None Game ------ Seed MyomerBlastMount Manual? 0 Play Time 08:07:24 Cumulative 20.2 hours Start 2024.04.06 @ 13:10:22 End 2024.04.10 @ 18:34:33 Sessions 21 Manual Loads 0 Difficulty Adventurer Special Mode None Game No. 5 Rogue 0 Adventurer 5 Explorer 0 Win Type - Total 0 Types 0/0/0/0/0/0/0/0/0 Lore% 13 Gallery% 20 Achievement% 19 Wizard Run 0 Options --------- Layout 0 ASCII 0 Keyboard 1 Movement Vi Keybinds 0 Fullscreen 1 Font 20/SmallcapsGlow Map View 140x60 Zoom Use 0% Tactical HUD 1 Map Filters NONE Filters NONE Steam 0 RUN: c7c9cd6b-4423-43cf-89a4-95c3156ae8fb